bitfinex-derivatives/quotes_ETHF0:USTF0_20250125
["timestamp","ask_amount","ask_price","bid_price","bid_amount"]
[1737818064734,0.48108,3326.0,3325.8,0.0045066]
[1737818065032,3.98580401,3325.9,3325.8,0.0045066]
[1737818065242,4.46689401,3325.9,3325.8,0.0045066]
[1737818065627,0.48109,3325.9,3325.8,0.0045066]
[1737818065937,4.43658749,3325.9,3325.8,0.0045066]
[1737818074938,4.43658749,3325.9,3325.8,3.2123066]
[1737818074939,3.95549749,3325.9,3325.8,3.2123066]
[1737818075342,4.43658749,3325.9,3325.8,3.2123066]
[1737818077244,4.43944159,3325.9,3325.8,3.2123066]
[1737818078245,4.43944159,3325.9,3325.8,0.0045066]
[1737818078745,4.43944159,3325.9,3325.8,0.47465727]
[1737818079744,4.43944159,3325.9,3325.8,0.0045066]
[1737818080850,4.43944159,3325.9,3325.8,0.47466304]
[1737818081250,4.43944159,3325.9,3325.8,0.0045066]
[1737818087347,4.43944159,3325.9,3325.8,0.36919969]
[1737818087654,4.43944159,3325.9,3325.8,0.0045066]
[1737818088445,4.43944159,3325.9,3325.8,0.36395943]
[1737818088959,3.95835159,3325.9,3325.8,3.57174969]
[1737818089156,0.31749469,3326.2,3325.9,0.48108]
[1737818089463,0.049,3326.4,3326.1,0.48106]
[1737818089648,0.049,3326.4,3326.2,4.59893117]
[1737818089848,0.53003,3326.4,3326.3,0.93433119]
[1737818090049,0.53003,3326.4,3326.3,0.35944309]
[1737818090457,0.53003,3326.4,3326.3,0.82551855]
[1737818091354,4.46866351,3326.4,3326.3,0.82551855]
[1737818091554,4.46866351,3326.4,3326.3,0.46607546]
[1737818091752,0.48109,3325.9,3325.8,3.2123066]
[1737818091951,0.48109,3325.9,3325.8,3.5714664]
[1737818092353,0.48108,3326.0,3325.8,3.2123066]
[1737818092551,0.48108,3326.0,3325.9,0.35917532]
[1737818092954,3.9869119,3326.0,3325.9,0.35917407]
[1737818093152,4.4679919,3326.0,3325.9,0.82520594]
[1737818093462,0.48108,3326.0,3325.9,0.82520594]
[1737818093661,4.4679919,3326.0,3325.9,0.82520594]
[1737818094460,4.4679919,3326.0,3325.9,0.35917407]
[1737818094866,4.4679919,3326.0,3325.9,0.35916256]
[1737818095758,4.4679919,3326.0,3325.8,3.2123066]
[1737818095759,3.9869119,3326.0,3325.8,3.2123066]
[1737818095960,0.48109,3325.9,3325.8,3.2123066]
[1737818096265,4.35357782,3325.9,3325.8,3.5715111]
[1737818097060,4.35357782,3325.9,3325.8,3.57155248]
[1737818097265,4.35357782,3325.9,3325.8,3.2123066]
[1737818100665,4.35357782,3325.9,3325.8,0.0045066]
[1737818108674,3.87248782,3325.9,3325.8,0.0045066]
[1737818108975,1.98837782,3325.9,3325.8,0.4856166]
[1737818109169,1.98837782,3325.9,3325.8,0.0045066]
[1737818110385,4.9900563,3325.9,3325.8,0.0045066]
[1737818110785,5.7117063,3325.9,3324.9,3.2078]
[1737818110983,0.48122,3325.1,3325.0,0.8406869]
[1737818111878,0.48122,3325.1,3325.0,0.3594669]
[1737818112088,3.87063055,3325.1,3325.0,0.35945567]
[1737818112389,3.87063055,3325.1,3324.9,3.2078]
[1737818112390,0.48122,3325.0,3324.9,3.2078]
[1737818112683,3.2078,3325.1,3324.7,0.0045066]
[1737818112888,0.48125,3324.8,3324.7,0.0045066]
[1737818113186,4.37144661,3324.8,3324.7,0.0045066]
[1737818113382,4.42044661,3324.8,3324.7,0.0045066]
[1737818114177,0.48138,3324.0,3323.7,0.4879]
[1737818114481,3.93165305,3323.9,3323.7,0.4879]
[1737818115488,3.93165305,3323.9,3323.6,3.2078]
[1737818115688,0.4814,3323.8,3323.6,3.2078]
[1737818115890,0.48141,3323.7,3323.6,3.2078]
[1737818116090,4.43614521,3323.7,3323.6,3.2078]
[1737818116290,3.95473521,3323.7,3323.6,3.2078]
[1737818116589,0.0045066,3324.1,3323.6,3.2078]
[1737818116590,0.48139,3323.9,3323.6,3.2078]
[1737818116991,3.93776035,3323.7,3323.6,3.68922]
[1737818117189,0.0045066,3324.1,3323.7,0.48141]
[1737818117385,0.0045066,3324.1,3324.0,3.68917]
[1737818117591,0.0045066,3324.1,3324.0,3.2078]
[1737818117592,0.4858566,3324.1,3324.0,3.2078]
[1737818117793,4.42361695,3324.1,3324.0,3.2078]
[1737818118786,4.47261695,3324.1,3324.0,3.2078]
[1737818118992,0.48142,3323.6,3323.5,44.0123066]
[1737818119189,0.48142,3323.6,3323.5,3.2123066]
[1737818119391,4.42343933,3323.6,3323.5,3.2123066]
[1737818119985,6.76718206,3323.6,3323.5,3.2123066]
[1737818120190,0.48151,3323.0,3322.7,4.46005]
[1737818120494,3.88455183,3322.9,3322.7,4.46005]
[1737818120694,3.88455183,3322.9,3322.8,40.8]
[1737818121591,4.36608183,3322.9,3322.8,40.8]
[1737818121789,0.48153,3322.9,3322.7,3.2078]
[1737818121986,3.8833421,3322.9,3322.7,3.2078]
[1737818122192,3.8833421,3322.9,3322.7,3.68935]
[1737818122500,3.8833421,3323.5,3322.7,3.2078]
[1737818122795,0.049,3323.6,3323.4,0.48145]
[1737818122994,0.53041,3323.7,3323.4,0.48145]
[1737818123200,3.85790079,3323.5,3323.1,3.2078]
[1737818123385,0.48147,3323.4,3323.1,3.2078]
[1737818123591,0.48146,3323.4,3323.1,3.68929]
[1737818123792,0.48147,3323.3,3323.1,3.68929]
[1737818123993,0.049,3323.7,3323.2,41.28147]
[1737818124193,0.48145,3323.5,3323.2,41.28147]
[1737818124396,3.98520518,3323.3,3323.2,41.28147]
[1737818124589,3.98520518,3323.4,3323.2,40.8]
[1737818124788,0.48143,3323.6,3323.3,0.48147]
[1737818124987,3.91697323,3323.5,3323.3,0.48147]
[1737818125299,0.049,3323.7,3323.2,40.8]
[1737818125499,4.39844323,3323.4,3323.2,40.8]
[1737818125701,0.48147,3323.3,3323.2,40.8]
[1737818126093,4.47484543,3323.3,3323.2,40.8]
[1737818126895,0.48148,3323.2,3323.1,3.2078]
[1737818127295,4.47424605,3323.2,3323.1,3.2078]
[1737818129193,4.47424605,3323.2,3322.5,0.75367614]
[1737818129194,0.48157,3322.6,3322.5,0.00307614]
[1737818129397,0.53057,3322.6,3322.5,0.00307614]
[1737818129602,7.61401834,3322.6,3322.5,0.00307614]
[1737818129901,0.48158,3322.5,3321.6,3.2078]
[1737818130102,0.049,3322.4,3321.6,3.2078]
[1737818130303,0.48165,3322.1,3321.7,0.4817]
[1737818130497,0.48137,3324.0,3323.6,0.48142]
[1737818130697,3.2078,3324.8,3323.9,3.2078]
[1737818130893,3.2078,3324.2,3323.4,3.2078]
[1737818131094,0.48139,3323.9,3323.5,0.48143]
[1737818131495,0.48139,3323.9,3323.4,44.0078]
[1737818131699,0.5143,3324.3,3323.8,3.2078]
[1737818131895,0.48137,3324.0,3323.8,3.2078]
[1737818132104,0.5143,3324.3,3323.8,3.2078]
[1737818132307,0.48138,3323.9,3323.8,3.2078]
[1737818133908,4.40158602,3323.9,3323.8,3.2078]
[1737818136701,3.92020602,3323.9,3323.8,3.2078]
[1737818136910,3.92020602,3323.9,3323.8,3.6892]
[1737818137103,0.48137,3324.0,3323.8,3.6892]
[1737818137303,3.953925,3323.9,3323.8,3.6892]
[1737818137809,4.435305,3323.9,3323.8,3.2078]
[1737818138210,0.48138,3323.9,3323.8,3.2078]
[1737818138710,4.4336565,3323.9,3323.8,3.2078]
[1737818138912,3.9522765,3323.9,3323.8,3.2078]
[1737818139114,3.9522765,3323.9,3323.8,3.6892]
[1737818139308,3.86601269,3324.1,3324.0,0.48137]
[1737818139710,0.4954,3324.2,3323.9,2.9587674]
[1737818139909,0.4954,3324.2,3324.0,0.48137]
[1737818139910,3.86601269,3324.1,3324.0,0.48137]
[1737818140711,0.00451358,3324.7,3324.5,0.48128]
[1737818140908,0.48578358,3324.7,3324.6,3.2078]
[1737818141105,0.00451358,3324.7,3324.6,3.2078]
[1737818141308,3.8668852,3324.7,3324.6,3.2078]
[1737818141711,4.3481552,3324.7,3324.6,3.2078]
[1737818142115,3.8668852,3324.7,3324.6,3.2078]
[1737818142314,4.3481552,3324.7,3324.6,3.2078]
[1737818143017,4.3481552,3324.7,3324.2,3.2078]
[1737818143018,0.48132,3324.3,3324.2,3.2078]
[1737818143209,0.48138,3323.9,3323.8,3.2078]
[1737818143611,4.37870577,3323.9,3323.8,3.2078]
[1737818144214,4.37870577,3323.9,3323.4,0.2507]
[1737818144215,3.89732577,3323.9,3323.4,3.2078]
[1737818144422,0.48144,3323.5,3322.9,3.2078]
[1737818144619,0.48151,3323.0,3322.9,3.2078]
[1737818144811,5.67248311,3323.4,3322.5,3.68938]
[1737818145011,3.90494349,3323.0,3322.5,3.2078]
[1737818145216,0.48157,3322.6,3322.5,3.2078]
[1737818145517,4.38651349,3322.6,3322.5,3.2078]
[1737818146217,0.00451358,3322.9,3322.8,0.48154]
[1737818146612,3.87357057,3322.9,3322.5,3.2078]
[1737818147219,4.35510057,3322.9,3322.7,0.48154]
[1737818148014,3.87357057,3322.9,3322.5,3.2078]
[1737818148218,3.87357057,3322.9,3322.8,0.48154]
[1737818148921,3.87357057,3322.9,3322.6,0.5124]
[1737818149122,3.87357057,3322.9,3322.8,0.48154]
[1737818149724,0.00451358,3322.9,3322.8,0.48154]
[1737818150512,0.00451358,3322.9,3322.8,0.99164]
[1737818150724,0.00451358,3322.9,3322.8,1.35078122]
[1737818151019,4.8585,3324.1,3322.8,5.8692344]
[1737818151220,0.4814,3323.8,3323.6,0.48142]
[1737818151418,3.95203425,3323.8,3323.6,0.48142]
[1737818151624,0.48138,3323.9,3323.7,0.48141]
[1737818151819,0.48137,3324.0,3323.8,3.6892]
[1737818152020,1.20321,3324.6,3323.8,3.2078]
[1737818152224,3.90829534,3323.9,3323.8,3.6892]
[1737818152521,0.48136,3324.1,3323.9,0.48137]
[1737818152824,4.38965534,3324.1,3323.9,0.48137]
[1737818153320,3.90829534,3324.1,3323.8,3.2078]
[1737818153526,0.48137,3324.0,3323.8,3.68919]
[1737818154020,4.38965534,3324.1,3323.9,0.48138]
[1737818154225,3.90829534,3324.1,3323.8,3.2078]
[1737818154627,0.00451358,3324.2,3323.9,2.9587674]
[1737818154828,0.00451358,3324.2,3324.1,0.48135]
[1737818157028,0.00451358,3324.2,3323.9,2.9587674]
[1737818157225,3.87926087,3324.2,3323.8,3.2078]
[1737818157427,0.48138,3323.9,3323.8,3.2078]
[1737818157626,3.87926087,3324.2,3323.8,3.2078]
[1737818157826,3.87926087,3324.2,3324.1,0.48135]
[1737818158226,0.00451358,3324.2,3324.1,0.48135]
[1737818159130,0.48586358,3324.2,3324.0,0.48137]
[1737818159330,0.00451358,3324.2,3324.1,0.48135]
[1737818159734,0.00451358,3324.2,3323.9,2.9587674]
[1737818159735,3.91082926,3324.2,3323.9,2.9587674]
[1737818160030,0.48135,3324.1,3323.9,3.4401374]
[1737818160432,3.91082926,3324.2,3323.9,2.9587674]
[1737818160637,0.48138,3323.9,3323.8,3.2078]
[1737818161031,3.96874687,3324.1,3323.9,0.48138]
[1737818161232,0.48585358,3324.2,3324.0,0.48137]
[1737818161529,0.48585358,3324.2,3323.9,0.48138]
[1737818161530,3.88017061,3324.0,3323.9,0.48138]
[1737818161834,0.00451358,3324.2,3323.8,3.68919]
[1737818162133,3.95290805,3324.0,3323.8,3.2078]
[1737818162328,0.96538,3323.9,3323.8,3.2078]
[1737818162635,4.91828805,3323.9,3323.8,3.2078]
[1737818163437,3.95290805,3323.9,3323.8,3.6892]
[1737818164141,0.00451358,3324.2,3323.8,3.2078]
[1737818164332,0.00451358,3324.2,3324.1,0.48135]
[1737818164828,3.97421722,3324.2,3324.1,0.48135]
[1737818165036,1.395e-05,3324.2,3324.1,0.48135]
[1737818165238,1.395e-05,3324.2,3324.1,5.84007428]
[1737818165438,1.395e-05,3324.2,3324.1,6.41388434]
[1737818165636,1.395e-05,3324.2,3324.1,6.86966231]
[1737818165938,1.395e-05,3324.2,3324.1,47.66966231]
[1737818166139,1.395e-05,3324.2,3324.1,48.12140208]
[1737818166533,0.48113,3325.7,3325.4,0.48115]
[1737818166737,0.48114,3325.6,3325.5,3.2078]
[1737818167041,3.99627412,3325.6,3325.5,3.68895]
[1737818167339,0.48113,3325.7,3325.5,3.68895]
[1737818167543,4.33790465,3325.6,3325.5,3.2078]
[1737818167939,0.48114,3325.6,3325.5,3.2078]
[1737818168345,4.36011245,3325.6,3325.5,3.2078]
[1737818169542,3.87897245,3325.6,3325.5,3.68895]
[1737818169835,0.00451358,3325.9,3325.5,3.2078]
[1737818170037,0.48114,3325.6,3325.5,3.68895]
[1737818170234,4.44755979,3325.6,3325.5,3.2078]
[1737818170438,0.48114,3325.6,3325.5,3.68895]
[1737818170640,0.48114,3325.6,3325.5,3.2078]
[1737818170844,3.96641979,3325.6,3325.5,3.68895]
[1737818171645,4.44755979,3325.6,3325.5,3.68895]
[1737818171946,3.96641979,3325.6,3325.5,3.68895]
[1737818172544,4.44755979,3325.6,3325.5,3.2078]
[1737818173451,4.44755979,3325.6,3325.5,3.68895]
[1737818173652,3.96641979,3325.6,3325.5,3.68895]
[1737818173952,0.00451358,3325.9,3325.8,0.48111]
[1737818174152,0.00451358,3325.9,3325.8,3.4398774]
[1737818175247,0.00451358,3325.9,3325.8,8.4398774]
[1737818175454,0.00451358,3325.9,3325.8,3.4398774]
[1737818176652,0.00451358,3325.9,3325.8,8.4398774]
[1737818176844,0.00451358,3325.9,3325.8,49.2398774]
[1737818177040,0.00451358,3325.9,3325.8,49.7493774]
[1737818177650,0.48091,3327.2,3326.9,3.4397074]
[1737818177846,3.2078,3328.5,3326.9,6.1665674]
[1737818178053,3.2078,3328.5,3327.6,3.2078]
[1737818178054,0.48084,3327.7,3327.6,3.2078]
[1737818178246,3.93403551,3327.7,3327.6,3.2078]
[1737818178443,4.43143551,3327.9,3327.6,3.2078]
[1737818178444,0.4974,3327.9,3327.6,3.68865]
[1737818178642,0.97821,3327.9,3327.6,3.2078]
[1737818178849,0.97821,3327.9,3327.6,3.68864]
[1737818179056,0.4974,3327.9,3327.6,3.68864]
[1737818179250,0.00451358,3328.0,3327.6,3.2078]
[1737818179944,0.48530358,3328.0,3327.7,0.48083]
[1737818180355,0.48530358,3328.0,3327.6,3.2078]
[1737818180545,0.00451358,3328.0,3327.6,3.2078]
[1737818180746,0.4808,3327.9,3327.6,3.68864]
[1737818181150,0.48083,3327.7,3327.6,3.2078]
[1737818182051,0.48081,3327.9,3327.6,3.68864]
[1737818182250,0.48083,3327.8,3327.6,3.2078]
[1737818182451,0.00451358,3328.0,3327.7,2.9587674]
[1737818182857,0.48082,3327.8,3327.7,2.9587674]
[1737818183253,0.00451358,3328.0,3327.6,3.2078]
[1737818183555,0.48083,3327.7,3327.6,3.2078]
[1737818184554,0.48531358,3328.0,3327.6,3.68864]
[1737818184859,0.00451358,3328.0,3327.7,2.9587674]
[1737818185054,3.81886842,3327.9,3327.6,3.2078]
[1737818185258,0.48083,3327.7,3327.6,3.2078]
[1737818185562,0.48081,3327.9,3327.6,3.2078]
[1737818185759,0.00451358,3328.0,3327.6,3.2078]
[1737818185954,0.48082,3327.8,3327.6,3.2078]
[1737818186556,0.48083,3327.7,3327.6,3.2078]
[1737818186959,0.48082,3327.8,3327.6,3.2078]
[1737818187154,0.48083,3327.8,3327.6,3.2078]
[1737818187355,0.48083,3327.7,3327.6,3.2078]
[1737818187854,4.30049443,3327.7,3327.6,3.2078]
[1737818188056,0.48083,3327.7,3327.6,3.2078]
[1737818188256,4.39591344,3327.7,3327.6,3.2078]
[1737818188549,3.91508344,3327.7,3327.3,0.00451358]
[1737818188750,0.48088,3327.4,3327.3,0.00451358]
[1737818188960,3.91508344,3327.7,3327.3,3.44417098]
[1737818188961,0.48085,3327.6,3327.3,3.44417098]
[1737818189161,3.91508344,3327.7,3327.5,3.2078]
[1737818189162,0.48084,3327.7,3327.5,3.2078]
[1737818189563,0.00451358,3328.0,3327.5,3.2078]
[1737818189760,0.48083,3327.8,3327.5,3.68866]
[1737818190363,3.89645748,3327.9,3327.5,3.2078]
[1737818190568,0.00451358,3328.0,3327.7,2.9587674]
[1737818190763,0.00451358,3328.0,3327.9,3.6886]
[1737818191359,0.00451358,3328.0,3327.9,3.2078]
[1737818191665,0.00451358,3328.0,3327.9,44.4886]
[1737818192052,0.00451358,3328.0,3327.9,45.5081]
[1737818193965,0.00451358,3328.0,3327.9,44.0078]
[1737818194152,0.00451358,3328.0,3327.9,3.2078]
[1737818194457,0.48530358,3328.0,3327.9,3.2078]
[1737818195456,4.48132243,3328.0,3327.9,3.2078]
[1737818195852,4.00053243,3328.0,3327.9,3.2078]
[1737818196061,0.00451358,3328.0,3327.9,3.6886]
[1737818198266,0.00451358,3328.0,3327.9,3.2078]
[1737818198469,0.48530358,3328.0,3327.9,3.2078]
[1737818199064,4.33650263,3328.0,3327.9,3.2078]
[1737818199760,3.85571263,3328.0,3327.3,44.01231358]
[1737818199965,1.4788,3327.9,3327.3,44.01231358]
[1737818200160,0.48088,3327.4,3327.3,44.01231358]
[1737818200770,0.48088,3327.4,3327.3,3.21231358]
[1737818202263,0.48087,3327.5,3327.3,3.69319358]
[1737818202467,0.48087,3327.5,3327.3,3.21231358]
[1737818202665,3.93928721,3327.4,3327.3,3.69319358]
[1737818203072,0.48082,3327.8,3327.6,0.48084]
[1737818203368,0.9731,3327.9,3327.8,0.48082]
[1737818203867,1.45391,3327.9,3327.8,40.8]
[1737818204070,0.9731,3327.9,3327.8,41.28082]
[1737818204370,1.4539,3327.9,3327.8,40.8]
[1737818205168,0.9731,3327.9,3327.6,0.48084]
[1737818205572,1.45391,3327.9,3327.7,0.48083]
[1737818205773,0.9731,3327.9,3327.7,40.8]
[1737818206166,1.45391,3327.9,3327.7,44.48863]
[1737818206367,0.48082,3327.8,3327.7,44.0078]
[1737818206767,0.48082,3327.8,3327.7,3.2078]
[1737818207267,4.31922643,3327.8,3327.7,3.2078]
[1737818208067,3.83840643,3327.8,3327.3,3.21231358]
[1737818208268,0.48086,3327.5,3327.4,0.35830236]
[1737818208573,0.48088,3327.4,3327.3,3.21231358]
[1737818208778,0.48088,3327.4,3327.3,3.57061439]
[1737818208973,4.34697701,3327.4,3327.3,3.57061439]
[1737818209381,4.34697701,3327.4,3327.3,3.21231358]
[1737818210178,0.48085,3327.6,3327.4,0.48087]
[1737818210675,0.48088,3327.4,3327.3,3.21231358]
[1737818210870,0.48088,3327.4,3327.3,3.57056286]
[1737818211071,0.48088,3327.4,3327.3,3.21231358]
[1737818211271,0.48087,3327.5,3327.3,3.21231358]
[1737818211667,4.32260363,3327.4,3327.3,3.21231358]
[1737818211868,3.84172363,3327.4,3327.3,4.05142681]
[1737818212067,0.48087,3327.5,3327.3,3.21231358]
[1737818212280,0.48087,3327.5,3327.3,3.69320358]
[1737818212473,3.9598878,3327.4,3327.3,3.69320358]
[1737818212671,3.9598878,3327.4,3327.3,4.05144095]
[1737818213274,0.9731,3327.9,3327.8,0.48082]
[1737818213482,0.9731,3327.9,3327.8,3.68862]
[1737818213672,4.95209648,3327.9,3327.8,3.68862]
[1737818213872,0.9731,3327.9,3327.8,3.68862]
[1737818214273,0.9731,3327.9,3327.8,3.2078]
[1737818214477,0.9731,3327.9,3327.8,3.68862]
[1737818216683,1.4539,3327.9,3327.8,3.68862]
[1737818217478,0.9731,3327.9,3327.8,3.68862]
[1737818218073,1.4539,3327.9,3327.8,3.68862]
[1737818218878,1.4539,3327.9,3327.8,3.2078]
[1737818219487,4.84678514,3327.9,3327.4,3.7135]
[1737818219885,4.84678514,3327.9,3327.7,0.48082]
[1737818219886,5.32759514,3327.9,3327.7,0.48082]
[1737818220076,4.84678514,3327.9,3327.7,0.48082]
[1737818220283,0.48082,3327.8,3327.7,0.48082]
[1737818220679,4.35450514,3327.9,3327.5,40.8]
[1737818220881,3.87368514,3327.9,3327.4,3.7135]
[1737818221182,0.48083,3327.8,3327.6,0.48084]
[1737818221582,0.48083,3327.8,3327.4,44.5135]
[1737818221780,3.87368514,3327.9,3327.7,0.48083]
[1737818222089,3.87368514,3327.9,3327.5,0.48086]
[1737818222090,0.48084,3327.7,3327.5,0.48086]
[1737818222282,0.48084,3327.7,3327.6,0.48085]
[1737818222883,0.48082,3327.8,3327.6,0.48085]
[1737818223080,0.00451358,3328.0,3327.4,6.00475263]
[1737818223279,0.48086,3327.5,3327.4,3.7135]
[1737818223887,6.24947056,3327.5,3327.3,0.00451358]
[1737818224086,0.4809,3327.3,3327.1,0.4809]
[1737818224281,0.4809,3327.3,3327.1,0.48091]
[1737818224485,3.97930324,3327.2,3327.1,0.48092]
[1737818224984,3.97930324,3327.3,3326.8,3.2078]
[1737818225188,3.68866,3327.6,3327.4,0.48087]
[1737818225391,0.48085,3327.6,3327.4,0.48087]
[1737818225593,3.97826789,3327.5,3327.4,0.48087]
[1737818225889,0.4936,3327.9,3327.6,0.48085]
[1737818226088,0.48083,3327.7,3327.6,3.2078]
[1737818226487,4.42238095,3327.7,3327.5,0.48085]
[1737818226888,3.94155095,3327.7,3327.6,3.68865]
[1737818227083,1.04981358,3328.0,3327.6,3.68865]
[1737818227084,1.04981358,3328.0,3327.6,3.2078]
[1737818227283,0.48082,3327.8,3327.7,0.48083]
[1737818227484,3.96232405,3327.8,3327.7,0.48083]
[1737818227684,0.48082,3327.8,3327.6,3.68864]
[1737818228285,1.04981358,3328.0,3327.6,3.2078]
[1737818228687,0.48082,3327.8,3327.6,3.2078]
[1737818228995,4.34239912,3327.9,3327.7,0.48083]
[1737818229194,0.48083,3327.8,3327.6,3.68864]
[1737818229488,0.48083,3327.7,3327.6,3.2078]
[1737818229691,4.32334981,3327.7,3327.6,3.2078]
[1737818229893,0.48083,3327.7,3327.6,3.2078]
[1737818230088,4.32334981,3327.7,3327.6,3.2078]
[1737818239197,3.84251981,3327.7,3327.1,3.7081]
[1737818239395,0.4809,3327.3,3327.2,0.4809]
[1737818239792,4.45294683,3327.3,3327.2,0.4809]
[1737818240089,0.4809,3327.2,3327.1,4.18901]
[1737818240296,4.45293683,3327.3,3327.2,0.4809]
[1737818240495,0.48089,3327.3,3327.2,0.4809]
[1737818240692,4.38626702,3327.3,3327.2,0.4809]
[1737818241496,0.4809,3327.2,3327.1,3.68871]
[1737818241698,0.4809,3327.2,3327.1,3.68872]
[1737818241995,4.43017579,3327.2,3327.1,3.2078]
[1737818242188,3.94927579,3327.2,3326.8,0.00451358]
[1737818242392,0.48095,3326.9,3326.8,0.00451358]
[1737818242694,4.37808948,3326.9,3326.8,0.00451358]
[1737818243402,3.89713948,3326.9,3326.8,0.00451358]
[1737818243596,0.00451358,3328.0,3326.9,0.48095]
[1737818243597,0.48088,3327.4,3326.9,0.48095]
[1737818243791,1.059,3327.8,3327.1,3.2078]
[1737818243996,0.48084,3327.7,3327.6,0.48084]
[1737818244204,4.45679894,3327.7,3327.6,0.48084]
[1737818244702,3.97595894,3327.7,3327.5,3.2078]
[1737818244896,3.97595894,3327.7,3327.6,0.48085]
[1737818245097,4.34709611,3327.8,3327.7,0.48083]
[1737818245302,0.48083,3327.8,3327.7,0.48083]
[1737818245696,3.88154869,3327.8,3327.7,0.48083]
[1737818249398,3.97506246,3327.9,3327.8,0.48082]
[1737818249707,0.48530358,3328.0,3327.9,0.4808]
[1737818250206,4.46036604,3328.0,3327.9,0.4808]
[1737818250614,3.97957604,3328.0,3327.9,0.4808]
[1737818251802,1e-08,3328.0,3327.9,4.04762136]
[1737818252003,1e-08,3328.0,3327.9,5.13235361]
[1737818252611,1e-08,3328.0,3327.9,5.1316782]
[1737818253115,1e-08,3328.0,3327.9,45.9316782]
[1737818253412,1e-08,3328.0,3327.9,51.38734507]
[1737818253717,3.2078,3329.8,3327.9,51.38734507]
[1737818253718,4.1834,3329.8,3327.9,53.92677574]
[1737818253919,3.6996,3329.8,3329.1,2.2912874]
[1737818254125,3.92016405,3329.7,3329.6,0.48055]
[1737818255913,0.0045062,3330.0,3329.9,0.48051]
[1737818257114,3.82893125,3330.0,3329.4,3.2078]
[1737818257311,0.0045062,3330.0,3329.8,0.48052]
[1737818257713,0.0045062,3330.0,3329.4,5.4990874]
[1737818258118,0.0045062,3330.0,3329.9,0.48051]
[1737818258621,0.0045062,3330.0,3329.4,46.2990874]
[1737818258816,0.48053,3329.9,3329.6,0.48055]
[1737818259014,0.48053,3329.9,3329.7,0.48054]
[1737818259215,3.83550401,3329.8,3329.5,0.48057]
[1737818259415,0.4850162,3330.0,3329.7,0.48054]
[1737818259712,3.86713989,3329.9,3329.8,0.48052]
[1737818259915,3.86713989,3329.9,3329.8,3.68832]
[1737818260117,0.0045062,3330.0,3329.9,0.48051]
[1737818260318,0.0045062,3330.0,3329.9,2.02171]
[1737818260720,0.0045062,3330.0,3329.9,1.51001]
[1737818262113,0.0045062,3330.0,3329.9,1.0295]
[1737818262921,0.0045062,3330.0,3329.9,1.51001]
[1737818264021,0.0045062,3330.0,3329.9,0.51]
[1737818264220,0.0045062,3330.0,3329.9,0.99051]
[1737818264619,0.4850062,3330.0,3329.9,0.51]
[1737818264818,0.0045062,3330.0,3329.9,0.51]
[1737818266419,0.0045062,3330.0,3329.9,0.99051]
[1737818267323,0.0045062,3330.0,3329.9,41.79051]
[1737818272228,0.0045062,3330.0,3329.9,0.51]
[1737818272429,0.0045062,3330.0,3329.8,3.2078]
[1737818273125,0.48051,3329.9,3329.8,3.2078]
[1737818274026,0.95551,3329.9,3329.8,3.2078]
[1737818274431,0.48059,3329.4,3329.3,0.0045062]
[1737818274631,3.2078,3329.4,3329.3,0.0045062]
[1737818274824,3.2078,3329.4,3329.3,0.4851062]
[1737818276231,0.48055,3329.7,3329.5,0.48057]
[1737818276434,0.0045062,3330.0,3329.3,0.0045062]
[1737818276629,0.48056,3329.6,3329.4,0.48058]
[1737818276929,0.48057,3329.5,3329.3,0.4851062]
[1737818277332,3.2078,3329.9,3329.3,0.0045062]
[1737818277630,0.48059,3329.4,3329.3,0.0045062]
[1737818279628,3.68839,3329.4,3329.3,0.0045062]
[1737818281133,5.9796774,3329.4,3329.3,0.0045062]
[1737818282132,5.4990874,3329.4,3328.8,40.8]
[1737818282437,0.48066,3328.9,3328.8,40.8]
[1737818282930,0.48072,3328.6,3328.4,3.7074]
[1737818283239,0.48072,3328.6,3328.4,4.18812]
[1737818283429,0.48072,3328.6,3328.5,40.8]
[1737818283734,1.054,3329.1,3328.4,3.7074]
[1737818284034,3.2078,3329.0,3328.2,0.0045062]
[1737818284235,0.48072,3328.5,3328.3,40.8]
[1737818284433,0.48072,3328.5,3328.3,41.28074]
[1737818284936,0.48072,3328.5,3328.2,3.6930562]
[1737818285330,0.48074,3328.4,3328.2,3.2123062]
[1737818285535,0.48072,3328.5,3328.2,3.6930562]
[1737818285731,0.5406,3328.9,3328.2,3.6930562]
[1737818286040,0.5406,3328.9,3328.2,40.8045062]
[1737818286041,0.48075,3328.3,3328.2,40.8045062]
[1737818287134,0.48075,3328.3,3328.2,0.0045062]
[1737818291340,1.043,3328.8,3328.2,0.0045062]
[1737818291539,0.48072,3328.5,3328.4,3.68853]
[1737818292735,1.042,3329.0,3328.5,0.48071]
[1737818293040,0.48067,3328.9,3328.7,0.48068]
[1737818293239,0.48067,3328.9,3328.8,3.68847]
[1737818293439,1.049,3329.2,3328.7,3.2078]
[1737818293633,0.48069,3328.8,3328.7,3.2078]
[1737818293937,1.043,3329.4,3328.7,3.2078]
[1737818294140,3.2078,3329.5,3329.0,0.48063]
[1737818294342,0.48063,3329.1,3329.0,0.48063]
[1737818294639,3.2078,3329.5,3328.9,0.48065]
[1737818294837,0.48063,3329.1,3329.0,0.5186]
[1737818295238,2.2912874,3329.4,3328.7,3.2078]
[1737818295541,0.48069,3328.8,3328.7,3.2078]
[1737818295940,0.48067,3328.8,3328.7,3.2078]
[1737818296135,0.4807,3328.6,3328.5,0.5186]
[1737818296638,0.48075,3328.3,3328.1,3.2078]
[1737818297935,0.48074,3328.4,3328.2,0.4852562]
[1737818298539,0.48074,3328.4,3328.2,0.0045062]
[1737818298938,0.48075,3328.3,3328.2,0.4852562]
[1737818299141,0.48075,3328.3,3328.2,0.0045062]
[1737818299640,0.48074,3328.4,3328.2,0.4852662]
[1737818299841,0.48075,3328.3,3328.2,0.0045062]
[1737818300040,0.48073,3328.5,3328.3,0.48074]
[1737818300232,0.48073,3328.5,3328.2,0.0045062]
[1737818300233,0.48073,3328.5,3328.4,0.5455]
[1737818300839,1.041,3328.7,3328.2,0.0045062]
[1737818301145,0.48075,3328.3,3328.2,0.0045062]
[1737818301743,1.041,3328.7,3328.2,0.0045062]